Cogmind - Beta 9.3 @@@ ROGUE MODE // 2019.12.20 @ 21:08:49 // Winter2019/RPGLIKE Player: Falconhoof Result: Destroyed by G-47 Trooper with Particle Gun Performance ------------- Evolutions (3) 1500 Regions Visited (4) 800 Robots Destroyed (60) 300 Value Destroyed (1715) 1715 Prototype IDs (4) 80 Alien Tech Used (0) 0 Bonus (113) 113 TOTAL SCORE: 4508 Bonus ------- High Alert Combat Kills 28 Follower Combat Kills 85 Cogmind --------- Core Integrity 0/1800 Matter 300/300 Energy 49/590 System Corruption 2% Temperature Cool (162) Movement Rolling (90) Location -7/Factory Parts ------- > --- POWER (1) -------- Improved Deuterium Engine > --- PROPULSION (2) --- Wheel Compact Wheel > --- UTILITY (2) ------ Improved Cooling System Force Booster > --- WEAPON (3) ------- Improved EM Pulse Cannon Powered Hammer > --- INVENTORY (4) ---- Improved Melee Analysis Suite Force Booster Lightning Gun Powered Hammer Peak State ------------ > --- POWER ------------ Improved Deuterium Engine > --- PROPULSION ------- Wheel Compact Wheel > --- UTILITY ---------- Improved Cooling System Improved Shield Generator > --- WEAPON ----------- Lightning Gun Gatling Laser Powered Hammer > --- INVENTORY -------- Nuclear Core Improved Melee Analysis Suite Flak Gun Powered Hammer [Rating: 27] Favorites ----------- Power Heavy Ion Engine Engine Heavy Ion Engine Propulsion Compact Wheel Wheel Compact Wheel Utility Improved Heat Sink Device Improved Heat Sink Storage High-capacity Matter Pod Processor Targeting Computer Weapon Light EM Pulse Cannon Energy Gun Lightning Gun Energy Cannon Light EM Pulse Cannon Ballistic Gun Improved Assault Rifle Ballistic Cannon Light Cannon Launcher Grenade Launcher Impact Weapon Powered Hammer Slashing Weapon Axe Special Melee Weapon Improved Datajack Build | -11 -10 -9 -8 -7 ------- Run | Scr Mat Mat Mat Fac Slots Evolved 4 | . 2 2 . . Power . | . . . . . Propulsion 1 | . . 1 . . Utility 1 | . 1 . . . Weapon 2 | . 1 1 . . Parts Attached 41 | 3 9 7 3 19 Power 5 | 1 1 2 . 1 Engine 5 | 1 1 2 . 1 Core . | . . . . . Reactor . | . . . . . Propulsion 7 | 1 . 1 . 5 Treads . | . . . . . Leg . | . . . . . Wheel 7 | 1 . 1 . 5 Hover . | . . . . . Flight . | . . . . . Utility 7 | . 2 1 . 4 Device 5 | . . 1 . 4 Storage 1 | . 1 . . . Processor 1 | . 1 . . . Hackware . | . . . . . Protection . | . . . . . Artifact . | . . . . . Weapon 22 | 1 6 3 3 9 Energy Gun 7 | 1 1 . . 5 Energy Cannon 6 | . 1 2 1 2 Ballistic Gun 1 | . . . 1 . Ballistic Cannon 3 | . 3 . . . Launcher 1 | . . 1 . . Special Weapon . | . . . . . Impact Weapon 2 | . 1 . . 1 Slashing Weapon 1 | . . . . 1 Piercing Weapon . | . . . . . Special Melee Weapon 1 | . . . 1 . Unidentified Prototypes 2 | . . . 1 1 Parts Lost . | . . . . . Power . | . . . . . Propulsion . | . . . . . Utility . | . . . . . Weapon . | . . . . . Highest Loss Streak . | . . . . . Average Slot Usage (%) 98 | . 94 99 99 98 Engine 14 | . 20 13 12 12 Wheel 22 | . 20 20 25 24 Device 14 | . . 5 12 24 Storage 5 | . 15 8 . . Processor 5 | . 5 13 12 . Energy Gun 6 | . 2 . . 12 Energy Cannon 10 | . 1 12 24 11 Ballistic Cannon 6 | . 19 7 . . Launcher 1 | . . 7 1 . Impact Weapon 8 | . 8 6 . 10 Naked Turns . | . . . . . Heaviest Build 28 | 5 15 22 20 28 Greatest Support 26 | 16 16 26 26 26 Greatest Overweight (x) 2 | . . 1 . 2 Average Overweight (x) . | . . . . . Largest Inventory Capacity 4 | . 2 3 3 4 Average Capacity 2 | . 1 2 3 3 Most Carried 4 | . 2 3 3 4 Average Carried 2 | . 1 1 2 3 Final Capacity 4 | . 2 3 3 4 Final Carried 4 | . 2 3 3 4 Class Distribution -------------------- 100% | Mutant Dominant Class ---------------- Mutant | -10/Materials Mutant | -9/Materials Mutant | -8/Materials Mutant | -7/Factory Resources | -11 -10 -9 -8 -7 ----------- Run | Scr Mat Mat Mat Fac Matter Collected 1178 | 230 398 330 30 190 Remotely . | . . . . . Salvage Created 1946 | . 211 706 144 885 Parts 113 | . 18 48 4 43 Haulers Intercepted 4 | . 1 1 1 1 Recyclers Shooed 1 | . . 1 . . Parts Field Recycled . | . . . . . Retrieved Matter . | . . . . . Parts Self-Destructed . | . . . . . Prevented . | . . . . . Kills | -11 -10 -9 -8 -7 ------- Run | Scr Mat Mat Mat Fac Combat Hostiles Destroyed 47 | . 8 23 1 15 Melee 5 | . . . . 5 Guns 2 | . . . . 2 Cannons 29 | . 8 14 1 6 AOE 10 | . . 9 . 1 Classes Destroyed 12 | . 3 6 . 3 Worker 3 | . . 2 . 1 Tunneler 1 | . . . . 1 Hauler 4 | . 1 1 1 1 Recycler 2 | . . 1 . 1 Operator 1 | . . 1 . . Watcher 2 | . . 1 . 1 Swarmer 17 | . 6 8 . 3 Grunt 19 | . 2 11 . 6 Brawler 1 | . . 1 . . Sentry 8 | . . 3 1 4 Hunter 1 | . . . . 1 Programmer 1 | . . . . 1 Best Kill Streak 14 | . 3 14 1 4 Combat Bots Only 10 | . 3 10 1 4 Max Kills in Single Turn 4 | . 1 4 1 1 Gunslinging . | . . . . . Exploded 3 | . . 3 . 1 Melee 1 | . . . . 1 Uniques/NPCs Destroyed . | . . . . . Combat | -11 -10 -9 -8 -7 -------- Run | Scr Mat Mat Mat Fac Damage Taken 3286 | . 231 1030 502 1523 Core 2667 | . 191 846 416 1214 Absorbed by Shields 430 | . . . . 430 Redirected to Core 2005 | . 123 610 312 960 Core Remaining (%) 55 | 100 71 32 17 . Volleys Fired 130 | . 27 60 7 36 Largest 2 | . 1 2 2 2 Hottest 143 | . 35 112 112 143 Shots Fired 192 | . 27 79 14 72 Gun 34 | . . . . 34 Cannon 146 | . 27 67 14 38 Launcher 12 | . . 12 . . Special . | . . . . . Kinetic 62 | . 27 35 . . Thermal 14 | . . . . 14 Explosive 12 | . . 12 . . Electromagnetic 104 | . . 32 14 58 Robot Hit Streak 21 | . 5 21 4 19 Robot Miss Streak 5 | . 3 4 1 5 Penetration Max . | . . . . . Secondary Targets . | . . . . . Shots Hit Robots 181 | . 14 63 13 91 Core Hits 94 | . 10 42 2 40 Critical Hits . | . . . . . Critical Kills . | . . . . . Critical Parts Destroyed . | . . . . . Melee Attacks 55 | . . 12 5 38 Impact 48 | . . 12 . 36 Slashing 2 | . . . . 2 Piercing . | . . . . . Sneak Attacks 4 | . . . 2 2 Combat Hostiles . | . . . . . Follow-up Attacks . | . . . . . Damage Inflicted 4972 | . 272 2139 221 2340 Guns 473 | . . . . 473 Cannons 2011 | . 272 970 221 548 Explosions 1135 | . . 1016 . 119 Melee 1353 | . . 153 . 1200 Ramming . | . . . . . Kinetic 794 | . 272 522 . . Thermal 444 | . . . . 444 Explosive 1016 | . . 1016 . . Electromagnetic 1365 | . . 448 221 696 Impact 1277 | . . 153 . 1124 Slashing 76 | . . . . 76 Piercing . | . . . . . Highest Corruption 2 | . . . . 2 Average Corruption 1 | . . . . 1 Corruption Purged . | . . . . . Overload Shots . | . . . . . Overflow Damage 79 | . . 43 . 36 Projectiles 9 | . . 1 . 8 Explosions 42 | . . 42 . . Melee 28 | . . . . 28 Knockbacks 8 | . 6 1 . 1 Impact 1 | . . . . 1 Kinetic 7 | . 6 1 . . Secondary . | . . . . . Self-Inflicted Damage 23 | . . 12 . 11 Shots 2 | . . 1 . 1 Rammed . | . . . . . Targets Rammed . | . . . . . Kicked . | . . . . . Crushed . | . . . . . Highest Temperature 258 | . 12 203 63 258 Average Temperature 55 | . 7 32 24 85 Received Heat Transfer 822 | . 42 306 108 366 Siege Activations . | . . . . . Robots Corrupted 2 | . . . 1 1 Combat Hostiles 1 | . . . . 1 Parts Fried 12 | . . 2 2 8 Impact Corruptions 3 | . . . . 3 Robots Melted . | . . . . . Combat Hostiles . | . . . . . Parts Melted 3 | . . . . 3 Heat Transferred 862 | . . . . 862 Parts Sabotaged . | . . . . . Parts Stolen . | . . . . . Parts Stripped . | . . . . . Power Chain Reactions 2 | . . . . 2 Missiles Intercepted . | . . . . . Alert | -11 -10 -9 -8 -7 ------- Run | Scr Mat Mat Mat Fac Peak Influence 540 | . 274 540 234 335 Average Influence 175 | . 138 248 172 165 Maximum Alert Level 2 | . 1 2 1 1 Low Security (%) 64 | 100 66 39 80 73 Level 1 32 | . 33 48 19 26 Level 2 2 | . . 12 . . Level 3 . | . . . . . Level 4 . | . . . . . Level 5 . | . . . . . High Security . | . . . . . Max Security . | . . . . . Squads Dispatched 6 | . . 1 . 5 Investigation 3 | . . 1 . 2 Extermination 2 | . . . . 2 Reinforcement 1 | . . . . 1 Assault . | . . . . . Garrison . | . . . . . Intercept . | . . . . . Construction Impeded . | . . . . . Haulers Reinforced . | . . . . . Stealth | -11 -10 -9 -8 -7 --------- Run | Scr Mat Mat Mat Fac Distress Signals 4 | . 1 2 1 . Communications Jammed . | . . . . . Distress Signals . | . . . . . Times Spotted 79 | . 13 30 8 28 Peak Tracking Total 10 | . 6 10 8 5 Tactical Retreats 3 | . 1 1 . 1 Traps | -11 -10 -9 -8 -7 ------- Run | Scr Mat Mat Mat Fac Traps Triggered 3 | . . 1 . 2 Indirectly . | . . . . . Trap Hack Attempts . | . . . . . Triggered . | . . . . . Disarmed . | . . . . . Reprogrammed . | . . . . . Reused . | . . . . . Traps Extracted . | . . . . . Installed . | . . . . . Triggered . | . . . . . Machines | -11 -10 -9 -8 -7 ---------- Run | Scr Mat Mat Mat Fac Machines Disabled 11 | . 1 5 . 5 Max in Single Turn 2 | . 1 1 . 2 Machines Sabotaged . | . . . . . Garrisons Compromised . | . . . . . Overloaded Fab Kills . | . . . . . Fab Network Shutdowns . | . . . . . Hacking | -11 -10 -9 -8 -7 --------- Run | Scr Mat Mat Mat Fac Machines Accessed 16 | . 6 2 . 8 Terminals 8 | . 4 2 . 2 Fabricators 1 | . . . . 1 Repair Stations 4 | . . . . 4 Recycling Units 3 | . 2 . . 1 Scanalyzers . | . . . . . Garrison Access . | . . . . . Total Hacks 44 | . 18 7 . 19 Successful 25 | . 9 5 . 11 Failed 19 | . 9 2 . 8 Catastrophic 1 | . . . . 1 Database Lockouts . | . . . . . Manual . | . . . . . Terminals 22 | . 11 7 . 4 Fabricators 2 | . . . . 2 Repair Stations 11 | . . . . 11 Recycling Units 9 | . 7 . . 2 Scanalyzers . | . . . . . Garrison Access . | . . . . . Terminal Hacks 16 | . 8 5 . 3 Record 2 | . 1 . . 1 Robot Analysis 1 | . 1 . . . Prototype ID Bank 2 | . 2 . . . Branch Access Points 1 | . 1 . . . Fabricator Index 1 | . . . . 1 Alert Level 2 | . . 2 . . Unreport Threat 2 | . . 1 . 1 Locate Traps 2 | . 1 1 . . Reinforcement Status 1 | . . 1 . . Hauler Manifests 1 | . 1 . . . Zone Layout 1 | . 1 . . . Fabricator Hacks . | . . . . . Repair Station Hacks 7 | . . . . 7 Scan Component 4 | . . . . 4 Repair 3 | . . . . 3 Recycling Unit Hacks 2 | . 1 . . 1 Report Inventory 1 | . . . . 1 Retrieve Components 1 | . 1 . . . Scanalyzer . | . . . . . Garrison Access Hacks . | . . . . . Unauthorized Hacks . | . . . . . Terminals . | . . . . . Fabricators . | . . . . . Repair Stations . | . . . . . Recycling Units . | . . . . . Scanalyzers . | . . . . . Garrison Access . | . . . . . Data Cores Recovered 1 | . . 1 . . Used . | . . . . . Hacking Detections 15 | . 5 2 . 8 Full Trace Events 2 | . . 1 . 1 Feedback Events . | . . . . . Feedback Blocked . | . . . . . Robot Schematics Acquired . | . . . . . Robots Built . | . . . . . Matter . | . . . . . Time . | . . . . . Total Robot Build Rating . | . . . . . Part Schematics Acquired . | . . . . . Parts Built . | . . . . . Matter . | . . . . . Time . | . . . . . Total Part Build Rating . | . . . . . Parts Repaired 3 | . . . . 3 Time 83 | . . . . 83 Parts Recycled . | . . . . . Recycled Matter . | . . . . . Retrieved Matter . | . . . . . Retrieved Components . | . . . . . Parts Scanalyzed . | . . . . . Part Schematics Acquired . | . . . . . Parts Damaged . | . . . . . Bothacking | -11 -10 -9 -8 -7 ------------ Run | Scr Mat Mat Mat Fac Used RIF Installer . | . . . . . Robots Hacked 2 | . . . 2 . Non-combat 2 | . . . 2 . Combat . | . . . . . Robot Hacks Applied 3 | . . . 3 . parse_system 2 | . . . 2 . no_distress 1 | . . . 1 . Relay Couplers Released . | . . . . . Robots Rewired . | . . . . . Allies Hacked . | . . . . . Hacks Repelled . | . . . . . Allies | -11 -10 -9 -8 -7 -------- Run | Scr Mat Mat Mat Fac Total Allies 3 | . . . . 3 Largest Group 3 | . . . . 3 Highest-Rated Group 93 | . . . . 93 Highest-Rated Ally 31 | . . . . 31 Total Orders . | . . . . . Ally Attacks 17 | . . . . 17 Total Damage 351 | . . . . 351 Kills 2 | . . . . 2 Allies Corrupted . | . . . . . Allies Melted . | . . . . . Intel | -11 -10 -9 -8 -7 ------- Run | Scr Mat Mat Mat Fac Robot Analysis Total 1 | . 1 . . . Derelict Logs Recovered . | . . . . . Drone Launches . | . . . . . Drone Recoveries . | . . . . . Exploration | -11 -10 -9 -8 -7 ------------- Run | Scr Mat Mat Mat Fac Turns Passed 3000 | 59 651 689 171 1430 Spaces Moved 2344 | 62 572 483 145 1082 Core 14 | 14 . . . . Treads . | . . . . . Legs . | . . . . . Wheels 2330 | 48 572 483 145 1082 Hover . | . . . . . Flight . | . . . . . Fastest Speed 50 | 50 100 90 90 90 Average Speed 94 | 88 100 95 90 92 Slowest Speed 110 | 100 100 110 90 110 Overloaded Moves . | . . . . . Propulsion Burnouts . | . . . . . Robots Hopped . | . . . . . Cave-ins Triggered . | . . . . . Exploration Rate (%) 34 | 4 82 40 14 34 Regions Visited 4 Branch Regions . Pre-discovered Areas . | . . . . . Known Exits Taken . | . . . . . Unknown Exits Taken 4 | 1 1 1 1 . Scrap Searched . | . . . . . Spaces Dug . | . . . . . Terrain Destroyed 34 | . . 30 . 4 Melee . | . . . . . Projectile 2 | . . 2 . . AOE 32 | . . 28 . 4 Actions | -11 -10 -9 -8 -7 --------- Run | Scr Mat Mat Mat Fac Total 2866 | 64 622 615 170 1395 Wait 198 | . 6 26 . 166 Move 2340 | 61 571 482 144 1082 Hop . | . . . . . Pick Up 17 | . 2 1 4 10 Fast Attach 39 | 3 9 5 3 19 Attach 2 | . . 2 . . Detach 4 | . . 3 . 1 Swap . | . . . . . Drop 41 | . 6 3 7 25 Fire 130 | . 27 60 7 36 Melee 55 | . . 12 5 38 Ram . | . . . . . Kick . | . . . . . Crush . | . . . . . Escape Stasis . | . . . . . Rewire . | . . . . . Trap . | . . . . . Miscellaneous 40 | . 1 21 . 18 Route ------- -11/Scrapyard -10/Materials (discovered 3 exits: *Mat x2 / *Min) -9/Materials (discovered 2 exits: [*Mat] / [*Min]) -8/Materials -7/Factory (discovered 1 exit: [*Low]) History --------- Turn | Location | Event 18 | -11/Scrapyard | Discovered new exit (range 16) 60 | -11/Scrapyard | Entered Materials 113 | -10/Materials | Discovered new exit (range 16) 305 | -10/Materials | Upgraded with Weapon slot (x1) 317 | -10/Materials | Build established: Mutant 334 | -10/Materials | Discovered new exit (range 9) 487 | -10/Materials | Upgraded with Utility slot (x1) 546 | -10/Materials | Discovered new exit (range 4) 610 | -10/Materials | Identified exit to Mines 711 | -10/Materials | Entered another Materials area 713 | -9/Materials | Reached level 2 872 | -9/Materials | Discovered new exit (range 9) 888 | -9/Materials | Core integrity fell below 50% 906 | -9/Materials | Core integrity fell below 20% 929 | -9/Materials | Reached level 3 1031 | -9/Materials | Reached level 4 1033 | -9/Materials | Upgraded with Propulsion slot (x1) 1033 | -9/Materials | Upgraded with Weapon slot (x1) 1052 | -9/Materials | Destroyed 10 combat bots 1095 | -9/Materials | Discovered new exit (range 16) 1400 | -9/Materials | Entered another Materials area 1402 | -8/Materials | Reached level 5 1491 | -8/Materials | Core integrity fell below 50% 1566 | -8/Materials | Core integrity fell below 20% 1567 | -8/Materials | Discovered new exit (range 5) 1571 | -8/Materials | Entered Factory 1572 | -7/Factory | Core integrity fell below 50% 1572 | -7/Factory | Core integrity fell below 20% 1573 | -7/Factory | Reached level 6 1695 | -7/Factory | Repaired Wheel 1711 | -7/Factory | Reached level 7 1771 | -7/Factory | Discovered new exit (range 10) 2075 | -7/Factory | Repaired Gatling Laser 2106 | -7/Factory | Repaired Wheel 2233 | -7/Factory | Allied Derelicts emerged from ambush trap array 2468 | -7/Factory | Reached level 8 3001 | -7/Factory | Destroyed by G-47 Trooper with Particle Gun Last Messages --------------- R-06 Scavenger collects Lgt. Treads. K-01 Serf collects debris. R-06 Scavenger collects Prototype Flight Unit. K-01 Serf collects debris. O-24 Administrator: "IFF HANDSHAKE FAILED. SECURING TERMINAL." ALERT: Hostiles spotted, dispatching reinforcements to Terminal F017. Used Protomatter to restore core integrity (+141, depleted) ALERT: Rogue bot located, Programmers report to Factory Zone 3F. G-47 Trooper destroyed. K-01 Serf collects debris. G-47 Trooper knocked back. K-01 Serf collects debris. Destroyed Imp. Heat Sink. G-47 Trooper system corrupted by crushing effect. Protomatter-60 decays. Upgraded: Core Integrity (+150) Door malfunctions. Dropped Lightning Gun. Dropped Wheel. Acquired Lightning Gun. Map ----- +----------------------------------------------------+ | ????????????????????????????# = =# """ #??????? | | ????????????????????????????# !=*+ ! """ #??????? | | ????????????????????????????# =# #??????? | | ????????????????????????????# ##########??????? | | ????????????????????????????# #??????????? | | ????????????????????????????# #??????????? | | ????????????????????????????# #??????????? | | ????????????????????????????# #??#####???? | | ????????????????????????????# #?? #???? | | ????????????????????????????# #? """ #???? | | ??????????????????????#?????# #? """ #???? | | ??????????????????????? ???# # """ #???? | | ???????????????????????"T !## # #???? | | ???????????????????????"" + #???? | | ?????????????????????# ### ########???? | | ?????????????????????# ???# #??????##??? | | ??????????????????????## ????# #????? ??? | | ???????????????????????#?????# #????" ""??? | | ?????????????????????????????# #???"S ""??? | | ?????????????????????????????# #???" """?? | | ???????????????????????#?????# ##? ??? | | ???????????????????????# ????# #?""" ""??? | | ??????????????????????##+##### # """ """?? | | ??????????????????????# ! ]# # """ """ " | | ??????????????????????# gp *#u + | | ??????????????????????#! @ ==guu k# | | ??????????????????????# !!!=### #! | | ??????????????????????# !!! #?# #?######### | | ??????????????????????# !!! #?## ???????? | | ??????????????????????########??# ????? | | ????????????????????????????????# ???? | | ????????????????????????????????+ ??? | | ????????????????????????????????# ? | | ????????????????????????????????# ? | | ????????????????????????????????# | | ????????????????????????????????# | | ????????????????????????????????# | | ????????????????????????????????############# | | ##########??????????????????????????????????? | | #???????????????????????????????????? | | """"""" #???????????????????????????????????????? | | """"""" #???????????????????????????????????????? | | """"""" #???????????????????????????????????????? | | """"""" #???????????????????????????????????????? | | #???????????????????????????????????????? | | """"""" #???????????????????????????????????????? | | """"""" #???????????????????????????????????????? | | """"""" #???????????????????????????????????????? | | """"""" #???????????????????????????????????????? | | #???????????????????????????????????????? | +----------------------------------------------------+ Best States ------------- Heat Dissipation 52 Energy Generation 16 Energy Capacity 590 Matter Stores 500 Matter Capacity 500 Sight Range 18 Terrain Scan Density 10 Resistance: EX 5 Evasion (%) 50 Targeting Accuracy 5 Force Boost 3 Offensive Hacking 15 Item Schematics ----------------- None Robot Schematics ------------------ None Fabricated ------------ Nothing Alien Tech Used ----------------- None Achievements -------------- Deadly Force Challenges ------------ None RPGLIKE | -11 -10 -9 -8 -7 --------- Run | Scr Mat Mat Mat Fac Levels Raised 7 | . . 3 1 3 XP Earned 14746 | 3000 1130 4659 1685 4272 XP Spent 13485 | . 2250 2275 2285 6675 Upgrades 49 | . 6 8 12 23 Propulsion Slot 1 | . . 1 . . Utility Slot 1 | . 1 . . . Weapon Slot 2 | . 1 1 . . Core Integrity 24 | . . 5 7 12 Energy Storage 6 | . . . 1 5 Inventory Capacity 4 | . 2 1 . 1 Sight Range 2 | . . . . 2 Melee Accuracy 5 | . 2 . . 3 Hack Attack % 3 | . . . 3 . EX Resistance % 1 | . . . 1 . Protomatter Created 402 | . 6 147 . 249 Integrity Restored 864 | . 18 441 . 405 Core 864 | . 18 441 . 405 Protomatter Decayed 137 | . . . . 137 Game ------ Seed ReclamationTacticalNanovents Manual? 0 Play Time 01:36:31 Cumulative 104.1 hours Start 2019.12.19 @ 18:00:36 End 2019.12.20 @ 21:08:49 Sessions 3 Manual Loads 0 Difficulty Rogue Special Mode Winter2019/RPGLIKE Game No. 49 Rogue 49 Adventurer 0 Explorer 0 Win Type - Total 0 Types 0/0/0/0/0/0/0 Lore% 28 Gallery% 32 Achievement% 19 Wizard Run 0 Options --------- ASCII 0 Keyboard 0 Movement Numpad Keybinds 0 Fullscreen 1 Font 18/SmallcapsGlow Map View 76x50 Tactical HUD 0 Map Filters NONE Filters NONE Steam 1 RUN: a163e329-d1ee-42b0-aa17-9bd80ffd07b2